fUST/lending_fUST_20250713
["ID","MTS","AMOUNT","RATE_DAILY","PERIOD"]
[371658948,1752381039852,-460.0,0.00018195,2]
[371658951,1752381039868,-460.0,0.00018197,2]
[371658954,1752381039883,-151.0,0.00018198,2]
[371658956,1752381039894,-151.0,0.00018198,2]
[371658958,1752381039904,-460.0,0.00018469,2]
[371658960,1752381039915,-460.0,0.00018471,2]
[371658962,1752381039924,-93.79302607,0.00018472,2]
[371658964,1752381039935,-460.0,0.00018472,2]
[371658966,1752381039945,-460.0,0.00018472,2]
[371658968,1752381039955,-460.0,0.00018472,2]
[371658970,1752381039965,-462.97220982,0.00018472,2]
[371658972,1752381039975,-369.78223121,0.00018472,2]
[371658974,1752381039985,-460.0,0.00018472,2]
[371658976,1752381039995,-460.0,0.00018472,2]
[371658979,1752381040006,-462.96630464,0.00018472,2]
[371658981,1752381040016,-271.65887501,0.00018472,2]
[371658983,1752381040026,-460.0,0.00018472,2]
[371658985,1752381040036,-460.0,0.00018472,2]
[371658987,1752381040046,-460.0,0.00018472,2]
[371658989,1752381040057,-460.0,0.00018472,2]
[371658991,1752381040067,-460.0,0.00018472,2]
[371658993,1752381040077,-314.89942466,0.00018472,2]
[371658995,1752381040087,-460.0,0.00018472,2]
[371658997,1752381040097,-460.0,0.00018472,2]
[371658999,1752381040106,-461.05371279,0.00018472,2]
[371659001,1752381040116,-460.0,0.00018472,2]
[371659003,1752381040126,-460.0,0.00018472,2]
[371659005,1752381040136,-460.0,0.00018472,2]
[371659007,1752381040147,-461.30544743,0.00018472,2]
[371659009,1752381040156,-460.0,0.00018472,2]
[371659011,1752381040166,-463.68600545,0.00018472,2]
[371659013,1752381040175,-460.0,0.00018472,2]
[371659015,1752381040185,-461.57941331,0.00018472,2]
[371659018,1752381040195,-460.0,0.00018472,2]
[371659020,1752381040204,-461.39322047,0.00018472,2]
[371659021,1752381040214,-460.0,0.00018472,2]
[371659024,1752381040224,-465.89611425,0.00018472,2]
[371659026,1752381040233,-460.0,0.00018472,2]
[371659028,1752381040243,-460.0,0.00018472,2]
[371659029,1752381040252,-461.47195804,0.00018472,2]
[371659032,1752381040261,-463.09019915,0.00018472,2]
[371659033,1752381040271,-460.0,0.00018472,2]
[371659036,1752381040281,-460.0,0.00018472,2]
[371659038,1752381040291,-384.6065614,0.00018472,2]
[371659040,1752381040305,-462.25984247,0.00018472,2]
[371659042,1752381040315,-460.0,0.00018472,2]
[371659044,1752381040324,-463.54067668,0.00018472,2]
[371659046,1752381040334,-460.0,0.00018472,2]
[371659048,1752381040345,-460.0,0.00018472,2]
[371659050,1752381040355,-460.0,0.00018472,2]
[371659052,1752381040364,-463.64877413,0.00018472,2]
[371659054,1752381040377,-460.0,0.00018472,2]
[371659056,1752381040387,-462.26418593,0.00018472,2]
[371659058,1752381040398,-460.0,0.00018472,2]
[371659060,1752381040407,-460.0,0.00018472,2]
[371659062,1752381040418,-462.97622952,0.00018472,2]
[371659064,1752381040427,-461.61365901,0.00018472,2]
[371659066,1752381040437,-460.0,0.00018472,2]
[371659069,1752381040447,-460.69845445,0.00018472,2]
[371659071,1752381040456,-463.37715352,0.00018472,2]
[371659073,1752381040466,-462.32680738,0.00018472,2]
[371659074,1752381040476,-460.0,0.00018472,2]
[371659077,1752381040489,-461.36727751,0.00018472,2]
[371659079,1752381040498,-461.24550865,0.00018472,2]
[371659081,1752381040508,-374.13299785,0.00018472,2]
[371659083,1752381040517,-460.0,0.00018472,2]
[371659085,1752381040527,-463.50643555,0.00018472,2]
[371659087,1752381040537,-460.0,0.00018472,2]
[371659089,1752381040546,-460.0,0.00018472,2]
[371659091,1752381040556,-460.0,0.00018472,2]
[371659093,1752381040566,-460.0,0.00018472,2]
[371659095,1752381040576,-197.22615,0.00018472,2]
[371659097,1752381040586,-460.0,0.00018472,2]
[371659100,1752381040595,-1610.1,0.00018472,2]
[371659102,1752381040605,-460.0,0.00018472,2]
[371659104,1752381040614,-460.0,0.00018472,2]
[371659106,1752381040623,-285.75058414,0.00018472,2]
[371659108,1752381040633,-460.0,0.00018472,2]
[371659110,1752381040644,-460.0,0.00018472,2]
[371659112,1752381040653,-396.263876,0.00018472,2]
[371659114,1752381040662,-396.263876,0.00018472,2]
[371659116,1752381040675,-396.263876,0.00018472,2]
[371659118,1752381040684,-396.263876,0.00018472,2]
[371659120,1752381040694,-396.263876,0.00018472,2]
[371659122,1752381040704,-460.0,0.00018472,2]
[371659124,1752381040714,-396.263876,0.00018472,2]
[371659126,1752381040724,-460.0,0.00018472,2]
[371659128,1752381040734,-460.0,0.00018472,2]
[371659130,1752381040744,-460.0,0.00018472,2]
[371659132,1752381040753,-460.0,0.00018472,2]
[371659134,1752381040763,-460.0,0.00018472,2]
[371659136,1752381040773,-213.26854287,0.00018472,2]
[371659138,1752381040782,-463.38511713,0.00018472,2]
[371659140,1752381040791,-463.95690257,0.00018472,2]
[371659142,1752381040801,-460.0,0.00018472,2]
[371659145,1752381040811,-460.0,0.00018472,2]
[371659147,1752381040821,-460.0,0.00018472,2]
[371659149,1752381040831,-462.25180848,0.00018472,2]
[371659151,1752381040840,-460.0,0.00018472,2]
[371659153,1752381040850,-162.417509,0.00018472,2]
[371659155,1752381040859,-162.417509,0.00018472,2]
[371659157,1752381040868,-162.417509,0.00018472,2]
[371659159,1752381040878,-552.32,0.00018472,2]
[371659161,1752381040887,-162.417509,0.00018472,2]
[371659163,1752381040898,-462.32567198,0.00018472,2]
[371659165,1752381040908,-460.0,0.00018472,2]
[371659167,1752381040918,-460.71413138,0.00018472,2]
[371659169,1752381040930,-463.13855242,0.00018472,2]
[371659171,1752381040941,-461.84124684,0.00018472,2]
[371659173,1752381040951,-460.0,0.00018472,2]
[371659175,1752381040960,-460.0,0.00018472,2]
[371659177,1752381040969,-460.0,0.00018472,2]
[371659179,1752381040979,-460.0,0.00018472,2]
[371659181,1752381040988,-464.19013341,0.00018472,2]
[371659183,1752381040997,-460.0,0.00018472,2]
[371659185,1752381041007,-460.0,0.00018472,2]
[371659187,1752381041017,-460.0,0.00018472,2]
[371659189,1752381041026,-1164.25,0.00018472,2]
[371659191,1752381041036,-460.0,0.00018472,2]
[371659193,1752381041046,-460.0,0.00018472,2]
[371659195,1752381041056,-460.0,0.00018472,2]
[371659197,1752381041066,-460.0,0.00018472,2]
[371659199,1752381041075,-460.0,0.00018472,2]
[371659201,1752381041086,-460.0,0.00018472,2]
[371659203,1752381041095,-460.0,0.00018472,2]
[371659205,1752381041105,-460.0,0.00018472,2]
[371659208,1752381041115,-1183.95,0.00018472,2]
[371659210,1752381041125,-460.0,0.00018472,2]
[371659212,1752381041134,-460.0,0.00018472,2]
[371659214,1752381041144,-500.5794027,0.00018473,2]
[371659216,1752381041154,-504.37273983,0.00018473,2]
[371659218,1752381041163,-500.39428951,0.00018473,2]
[371659220,1752381041175,-500.81676726,0.00018473,2]
[371659222,1752381041184,-504.65986824,0.00018473,2]
[371659224,1752381041195,-500.0,0.00018473,2]
[371659226,1752381041205,-475.27462362,0.00018743,2]
[371659228,1752381041214,-460.0,0.00018743,2]
[371659230,1752381041224,-460.0,0.00018743,2]
[371659232,1752381041233,-473.94054491,0.00018744,2]
[371659234,1752381041243,-465.14993079,0.00018744,2]
[371659236,1752381041254,-1159.48,0.00018744,2]
[371659238,1752381041264,-460.0,0.00018744,2]
[371659241,1752381041274,-460.0,0.00018744,2]
[371659243,1752381041284,-460.0,0.00018744,2]
[371659245,1752381041296,-460.0,0.00018744,2]
[371659247,1752381041311,-1032.33,0.00018744,2]
[371659249,1752381041320,-598.66,0.00018744,2]
[371659251,1752381041329,-460.0,0.00018744,2]
[371659253,1752381041339,-460.0,0.00018744,2]
[371659255,1752381041347,-460.0,0.00018744,2]
[371659257,1752381041358,-460.0,0.00018744,2]
[371659259,1752381041367,-478.75190424,0.00018744,2]
[371659261,1752381041379,-460.0,0.00018744,2]
[371659263,1752381041391,-525.9,0.00018744,2]
[371659265,1752381041400,-460.0,0.00018744,2]
[371659267,1752381041410,-477.13170389,0.00018744,2]
[371659269,1752381041419,-460.0,0.00018744,2]
[371659271,1752381041429,-460.0,0.00018744,2]
[371659273,1752381041439,-569.0,0.00018744,2]
[371659275,1752381041449,-213.6,0.00018744,2]
[371659277,1752381041459,-460.0,0.00018744,2]
[371659278,1752381041468,-460.0,0.00018744,2]
[371659279,1752381041478,-460.0,0.00018745,2]
[371659280,1752381041487,-460.0,0.00018745,2]
[371659281,1752381041497,-460.0,0.00018745,2]
[371659282,1752381041506,-460.0,0.00018745,2]
[371659283,1752381041516,-460.0,0.00018745,2]
[371659284,1752381041525,-460.0,0.00018745,2]
[371659285,1752381041535,-573.3082617,0.00018745,2]
[371659286,1752381041544,-460.0,0.00018745,2]
[371659287,1752381041554,-238.51968945,0.00018745,2]
[371659288,1752381041563,-460.0,0.00018745,2]
[371659289,1752381041574,-273.02493693,0.00018745,2]
[371659290,1752381041583,-490.39634865,0.00018745,2]
[371659291,1752381041593,-460.0,0.00018745,2]
[371659292,1752381041602,-460.0,0.00018745,2]
[371659293,1752381041613,-460.0,0.00018745,2]
[371659295,1752381041622,-460.0,0.00018745,2]
[371659296,1752381041631,-464.6103126,0.00018745,2]
[371659298,1752381041641,-460.0,0.00018745,2]
[371659300,1752381041650,-460.0,0.00018745,2]
[371659302,1752381041659,-460.0,0.00018745,2]
[371659304,1752381041669,-460.0,0.00018745,2]
[371659306,1752381041678,-460.0,0.00018745,2]
[371659308,1752381041687,-434.76274286,0.00018745,2]
[371659310,1752381041697,-460.0,0.00018745,2]
[371659312,1752381041706,-460.0,0.00018745,2]
[371659314,1752381041717,-460.0,0.00018745,2]
[371659316,1752381041727,-460.0,0.00018745,2]
[371659319,1752381041737,-460.0,0.00018745,2]
[371659320,1752381041746,-460.0,0.00018745,2]
[371659322,1752381041756,-460.0,0.00018745,2]
[371659324,1752381041765,-460.0,0.00018745,2]
[371659326,1752381041775,-460.0,0.00018745,2]
[371659329,1752381041785,-396.263876,0.00018745,2]
[371659331,1752381041795,-396.263876,0.00018745,2]
[371659333,1752381041804,-460.0,0.00018745,2]
[371659335,1752381041814,-460.0,0.00018745,2]
[371659337,1752381041823,-532.97,0.00018745,2]
[371659339,1752381041833,-460.0,0.00018745,2]
[371659341,1752381041851,-460.0,0.00018745,2]
[371659344,1752381041862,-460.0,0.00018745,2]
[371659346,1752381041872,-460.0,0.00018745,2]
[371659348,1752381041882,-460.0,0.00018745,2]
[371659350,1752381041891,-460.0,0.00018745,2]
[371659352,1752381041901,-460.0,0.00018745,2]
[371659353,1752381041911,-460.0,0.00018745,2]
[371659356,1752381041921,-460.0,0.00018745,2]
[371659357,1752381041930,-497.02887072,0.00018745,2]
[371659360,1752381041940,-460.0,0.00018745,2]
[371659362,1752381041949,-464.06036161,0.00018745,2]
[371659363,1752381041959,-460.0,0.00018745,2]
[371659366,1752381041969,-460.0,0.00018745,2]
[371659368,1752381041978,-460.0,0.00018745,2]
[371659370,1752381041988,-460.0,0.00018745,2]
[371659372,1752381041998,-463.03654658,0.00018745,2]
[371659373,1752381042007,-460.0,0.00018745,2]
[371659376,1752381042017,-464.18810108,0.00018745,2]
[371659378,1752381042027,-460.0,0.00018745,2]
[371659380,1752381042037,-460.0,0.00018745,2]
[371659382,1752381042046,-460.0,0.00018745,2]
[371659383,1752381042056,-460.0,0.00018745,2]
[371659385,1752381042065,-460.0,0.00018745,2]
[371659388,1752381042075,-468.69657159,0.00018746,2]
[371659390,1752381042085,-464.88111588,0.00018746,2]
[371659391,1752381042094,-460.0,0.00018746,2]
[371659394,1752381042104,-460.0,0.00018746,2]
[371659395,1752381042114,-460.0,0.00018746,2]
[371659397,1752381042123,-460.0,0.00018746,2]
[371659415,1752381042277,-460.0,0.00018746,2]
[371659418,1752381042303,-460.0,0.00018746,2]
[371659420,1752381042312,-460.0,0.00018746,2]
[371659422,1752381042322,-462.43621757,0.00018746,2]
[371659424,1752381042332,-434.85931435,0.00018746,2]
[371659426,1752381042343,-455.71908756,0.00018746,2]
[371659428,1752381042353,-237.07492919,0.00018746,2]
[371659430,1752381042363,-515.64971993,0.00018746,2]
[371659432,1752381042373,-460.0,0.00018746,2]
[371659434,1752381042382,-460.0,0.00018746,2]
[371659436,1752381042395,-460.0,0.00018746,2]
[371659438,1752381042404,-448.34615787,0.00018746,2]
[371659440,1752381042413,-460.0,0.00018746,2]
[371659441,1752381042423,-460.0,0.00018746,2]
[371659443,1752381042432,-460.0,0.00018746,2]
[371659445,1752381042442,-460.0,0.00018746,2]
[371659447,1752381042451,-460.0,0.00018746,2]
[371659449,1752381042461,-460.0,0.00018746,2]
[371659451,1752381042471,-460.0,0.00018746,2]
[371659453,1752381042482,-460.0,0.00018746,2]
[371659455,1752381042491,-314.65072694,0.00018746,2]
[371659457,1752381042500,-460.0,0.00018746,2]
[371659459,1752381042509,-465.58143984,0.00018746,2]
[371659461,1752381042519,-460.0,0.00018746,2]
[371659463,1752381042528,-460.0,0.00018746,2]
[371659465,1752381042538,-460.0,0.00018746,2]
[371659467,1752381042547,-463.18449326,0.00018746,2]
[371659469,1752381042556,-460.0,0.00018746,2]
[371659471,1752381042566,-460.0,0.00018746,2]
[371659474,1752381042575,-463.54492002,0.00018746,2]
[371659477,1752381042584,-438.18578649,0.00018746,2]
[371659479,1752381042594,-460.0,0.00018746,2]
[371659481,1752381042604,-461.64756827,0.00018746,2]
[371659483,1752381042614,-460.0,0.00018746,2]
[371659485,1752381042623,-460.0,0.00018746,2]
[371659487,1752381042633,-460.0,0.00018746,2]
[371659489,1752381042643,-462.45606311,0.00018746,2]
[371659491,1752381042653,-460.0,0.00018746,2]
[371659493,1752381042662,-245.91310057,0.00018746,2]
[371659495,1752381042671,-466.09007482,0.00018746,2]
[371659497,1752381042681,-461.2302187,0.00018746,2]
[371659499,1752381042691,-460.0,0.00018746,2]
[371659501,1752381042702,-461.17739534,0.00018746,2]
[371659503,1752381042711,-460.0,0.00018746,2]
[371659505,1752381042721,-460.0,0.00018746,2]
[371659507,1752381042731,-463.15071101,0.00018746,2]
[371659509,1752381042740,-460.0,0.00018746,2]
[371659511,1752381042750,-460.0,0.00018746,2]
[371659513,1752381042759,-460.0,0.00018746,2]
[371659515,1752381042768,-595.5643006,0.00018746,2]
[371659517,1752381042777,-464.26531137,0.00018746,2]
[371659519,1752381042786,-462.18545582,0.00018746,2]
[371659521,1752381042796,-460.0,0.00018746,2]
[371659523,1752381042806,-461.62907992,0.00018746,2]
[371659525,1752381042815,-461.07483037,0.00018746,2]
[371659527,1752381042825,-463.13732047,0.00018746,2]
[371659529,1752381042835,-460.0,0.00018746,2]
[371659531,1752381042844,-460.0,0.00018746,2]
[371659533,1752381042853,-460.0,0.00018746,2]
[371659535,1752381042863,-460.0,0.00018746,2]
[371659537,1752381042872,-460.0,0.00018746,2]
[371659539,1752381042882,-460.0,0.00018746,2]
[371659541,1752381042892,-546.23468215,0.00018746,2]
[371659543,1752381042902,-464.86671991,0.00018746,2]
[371659545,1752381042911,-460.98913339,0.00018746,2]
[371659547,1752381042921,-1610.1,0.00018746,2]
[371659549,1752381042931,-460.0,0.00018746,2]
[371659551,1752381042940,-269.4972036,0.00018746,2]
[371659553,1752381042950,-460.0,0.00018746,2]
[371659555,1752381042959,-460.0,0.00018746,2]
[371659557,1752381042969,-396.263876,0.00018746,2]
[371659559,1752381042978,-460.0,0.00018746,2]
[371659561,1752381042989,-396.263883,0.00018746,2]
[371659563,1752381042998,-460.0,0.00018746,2]
[371659565,1752381043009,-461.55620571,0.00018746,2]
[371659567,1752381043019,-460.0,0.00018746,2]
[371659569,1752381043029,-460.0,0.00018746,2]
[371659571,1752381043039,-460.0,0.00018746,2]
[371659573,1752381043048,-460.0,0.00018746,2]
[371659575,1752381043058,-460.0,0.00018746,2]
[371659577,1752381043067,-462.33925944,0.00018746,2]
[371659580,1752381043077,-460.0,0.00018746,2]
[371659582,1752381043087,-162.417509,0.00018746,2]
[371659583,1752381043096,-552.32,0.00018746,2]
[371659586,1752381043105,-162.417509,0.00018746,2]
[371659587,1752381043115,-199.98912632,0.00018746,2]
[371659589,1752381043125,-460.0,0.00018746,2]
[371659591,1752381043135,-461.99161862,0.00018746,2]
[371659594,1752381043147,-460.0,0.00018746,2]
[371659596,1752381043156,-460.0,0.00018746,2]
[371659598,1752381043166,-460.0,0.00018746,2]
[371659600,1752381043175,-1164.25,0.00018746,2]
[371659602,1752381043185,-460.0,0.00018746,2]
[371659604,1752381043196,-460.0,0.00018746,2]
[371659605,1752381043206,-391.0295336,0.00018746,2]
[371659608,1752381043217,-460.0,0.00018746,2]
[371659610,1752381043227,-460.0,0.00018746,2]
[371659612,1752381043237,-460.0,0.00018746,2]
[371659614,1752381043247,-314.0210308,0.00018746,2]
[371659616,1752381043257,-460.0,0.00018746,2]
[371659618,1752381043266,-460.0,0.00018746,2]
[371659620,1752381043276,-1183.95,0.00018746,2]
[371659622,1752381043286,-460.0,0.00018746,2]
[371659624,1752381043297,-527.35245545,0.00018746,2]
[371659626,1752381043309,-500.0,0.00018773,2]
[371659628,1752381043319,-151.11776129,0.00018773,2]
[371659630,1752381043328,-258.05,0.00018779,2]
[371659632,1752381043339,-110738.23493462,0.00018799,2]
[371659634,1752381043349,-162.417509,0.00018799,2]
[371659636,1752381043358,-162.417509,0.00018799,2]
[371659638,1752381043368,-733.22,0.00018898,2]
[371659640,1752381043378,-460.0,0.00018899,2]
[371659642,1752381043387,-407.60339752,0.00018899,2]
[371659644,1752381043398,-461.31717913,0.00018899,2]
[371659646,1752381043408,-460.0,0.00018899,2]
[371659648,1752381043418,-460.0,0.00018899,2]
[371659650,1752381043428,-274.58795901,0.00018899,2]
[371659652,1752381043437,-460.0,0.00018899,2]
[371659654,1752381043448,-462.99755052,0.00018899,2]
[371659656,1752381043458,-460.76756559,0.00018899,2]
[371659658,1752381043467,-460.0,0.00018899,2]
[371659660,1752381043478,-460.0,0.00018899,2]
[371659662,1752381043488,-460.43656422,0.00018899,2]
[371659664,1752381043498,-460.62520124,0.00018899,2]
[371659666,1752381043508,-460.0,0.00018899,2]
[371659668,1752381043517,-462.75792507,0.00018899,2]
[371659670,1752381043528,-460.0,0.00018899,2]
[371659672,1752381043538,-460.0,0.00018899,2]
[371659674,1752381043549,-151.561271,0.00018899,2]
[371659676,1752381043558,-151.0,0.00018899,2]
[371659678,1752381043568,-460.0,0.00018899,2]
[371659680,1752381043577,-460.0,0.00018899,2]
[371659682,1752381043586,-151.294811,0.00018899,2]
[371659684,1752381043597,-460.0,0.00018899,2]
[371659686,1752381043607,-1882.52,0.00018899,2]
[371659688,1752381043617,-535.04,0.00018899,2]
[371659690,1752381043627,-460.0,0.00018899,2]
[371659692,1752381043636,-162.417509,0.00018899,2]
[371659694,1752381043647,-162.417509,0.00018899,2]
[371659696,1752381043657,-274.66602173,0.000189,2]
[371659698,1752381043666,-1159.48,0.00019018,2]
[371659700,1752381043676,-460.0,0.00019018,2]
[371659702,1752381043686,-460.0,0.00019018,2]
[371659704,1752381043696,-467.39904636,0.00019018,2]
[371659706,1752381043705,-482.2541419,0.00019018,2]
[371659708,1752381043714,-1032.33,0.00019018,2]
[371659710,1752381043725,-598.66,0.00019018,2]
[371659712,1752381043734,-460.0,0.00019018,2]
[371659714,1752381043743,-484.10220023,0.00019018,2]
[371659716,1752381043753,-152.99974326,0.00019018,2]
[371659719,1752381043763,-460.0,0.00019018,2]
[371659721,1752381043774,-525.9,0.00019018,2]
[371659723,1752381043784,-460.0,0.00019018,2]
[371659725,1752381043794,-460.0,0.00019018,2]
[371659727,1752381043804,-460.0,0.00019018,2]
[371659729,1752381043814,-569.0,0.00019018,2]
[371659730,1752381043823,-543.65,0.00019018,2]
[371659732,1752381043832,-460.0,0.00019018,2]
[371659735,1752381043843,-460.0,0.00019019,2]
[371659736,1752381043853,-460.0,0.00019019,2]
[371659738,1752381043864,-460.0,0.00019019,2]
[371659740,1752381043873,-460.0,0.00019019,2]
[371659742,1752381043884,-460.0,0.00019019,2]
[371659743,1752381043894,-460.0,0.00019019,2]
[371659744,1752381043903,-460.0,0.00019019,2]
[371659745,1752381043912,-460.0,0.00019019,2]
[371659746,1752381043921,-460.0,0.00019019,2]
[371659747,1752381043931,-465.477809,0.00019019,2]
[371659748,1752381043940,-460.0,0.00019019,2]
[371659749,1752381043950,-460.0,0.00019019,2]
[371659750,1752381043959,-733.22,0.00019019,2]
[371659751,1752381043968,-460.0,0.00019019,2]
[371659752,1752381043977,-460.0,0.00019019,2]
[371659753,1752381043987,-269.92126635,0.00019019,2]
[371659754,1752381043996,-460.0,0.00019019,2]
[371659755,1752381044005,-460.0,0.00019019,2]
[371659756,1752381044014,-460.0,0.00019019,2]
[371659757,1752381044024,-460.0,0.00019019,2]
[371659758,1752381044033,-460.0,0.00019019,2]
[371659759,1752381044043,-460.0,0.00019019,2]
[371659760,1752381044052,-460.0,0.00019019,2]
[371659761,1752381044061,-460.0,0.00019019,2]
[371659762,1752381044070,-460.0,0.00019019,2]
[371659763,1752381044080,-460.0,0.00019019,2]
[371659764,1752381044089,-460.0,0.00019019,2]
[371659765,1752381044098,-460.0,0.00019019,2]
[371659766,1752381044108,-219.89774775,0.00019019,2]
[371659767,1752381044117,-460.0,0.00019019,2]
[371659768,1752381044126,-477.85156638,0.00019019,2]
[371659769,1752381044135,-460.0,0.00019019,2]
[371659770,1752381044145,-460.0,0.00019019,2]
[371659771,1752381044154,-460.0,0.00019019,2]
[371659773,1752381044163,-460.0,0.00019019,2]
[371659774,1752381044173,-460.0,0.00019019,2]
[371659775,1752381044183,-460.0,0.00019019,2]
[371659776,1752381044192,-460.0,0.00019019,2]
[371659777,1752381044201,-460.0,0.00019019,2]
[371659779,1752381044211,-521.29226932,0.00019019,2]
[371659781,1752381044221,-460.0,0.00019019,2]
[371659783,1752381044231,-470.84549204,0.00019019,2]
[371659785,1752381044240,-460.0,0.00019019,2]
[371659787,1752381044250,-460.0,0.00019019,2]
[371659789,1752381044259,-460.0,0.00019019,2]
[371659791,1752381044268,-462.58682951,0.00019019,2]
[371659793,1752381044278,-460.0,0.00019019,2]
[371659795,1752381044288,-460.0,0.0001902,2]
[371659797,1752381044301,-460.0,0.0001902,2]
[371659799,1752381044311,-576.79662114,0.0001902,2]
[371659800,1752381044321,-460.0,0.0001902,2]
[371659802,1752381044332,-460.0,0.0001902,2]
[371659804,1752381044343,-460.0,0.0001902,2]
[371659806,1752381044353,-460.0,0.0001902,2]
[371659808,1752381044363,-464.16015623,0.0001902,2]
[371659811,1752381044378,-460.0,0.0001902,2]
[371659813,1752381044390,-460.0,0.0001902,2]
[371659814,1752381044401,-462.65210632,0.0001902,2]
[371659816,1752381044411,-460.0,0.0001902,2]
[371659819,1752381044420,-506.3302443,0.0001902,2]
[371659820,1752381044430,-460.0,0.0001902,2]
[371659823,1752381044440,-547.69675633,0.0001902,2]
[371659825,1752381044450,-460.0,0.0001902,2]
[371659826,1752381044459,-460.0,0.0001902,2]
[371659828,1752381044468,-460.0,0.0001902,2]
[371659831,1752381044478,-463.32396749,0.0001902,2]
[371659832,1752381044487,-460.0,0.0001902,2]
[371659834,1752381044497,-546.47296967,0.0001902,2]
[371659836,1752381044507,-461.67124294,0.0001902,2]
[371659839,1752381044518,-460.0,0.0001902,2]
[371659841,1752381044527,-460.94298234,0.0001902,2]
[371659843,1752381044537,-460.0,0.0001902,2]
[371659845,1752381044547,-334.15937102,0.0001902,2]
[371659847,1752381044556,-468.55685459,0.0001902,2]
[371659849,1752381044566,-460.0,0.0001902,2]
[371659851,1752381044575,-235.52853602,0.0001902,2]
[371659853,1752381044585,-460.0,0.0001902,2]
[371659855,1752381044594,-460.0,0.0001902,2]
[371659857,1752381044604,-603.09593356,0.0001902,2]
[371659859,1752381044614,-463.62510642,0.0001902,2]
[371659861,1752381044624,-460.0,0.0001902,2]
[371659863,1752381044633,-463.07366615,0.0001902,2]
[371659865,1752381044643,-151.0,0.0001902,2]
[371659876,1752381044747,-460.0,0.0001902,2]
[371659878,1752381044757,-460.0,0.0001902,2]
[371659880,1752381044767,-466.87147433,0.0001902,2]
[371659882,1752381044777,-470.27950929,0.0001902,2]
[371659884,1752381044788,-460.0,0.0001902,2]
[371659886,1752381044797,-460.0,0.0001902,2]
[371659888,1752381044807,-460.0,0.0001902,2]
[371659890,1752381044816,-1610.1,0.0001902,2]
[371659892,1752381044826,-460.0,0.0001902,2]
[371659894,1752381044836,-460.0,0.0001902,2]
[371659896,1752381044846,-460.0,0.0001902,2]
[371659898,1752381044855,-464.76822969,0.0001902,2]
[371659900,1752381044864,-460.0,0.0001902,2]
[371659902,1752381044875,-460.0,0.0001902,2]
[371659904,1752381044885,-460.0,0.0001902,2]
[371659906,1752381044895,-460.0,0.0001902,2]
[371659908,1752381044905,-460.0,0.0001902,2]
[371659910,1752381044914,-460.0,0.0001902,2]
[371659912,1752381044924,-460.0,0.0001902,2]
[371659915,1752381044933,-162.417509,0.0001902,2]
[371659916,1752381044943,-552.32,0.0001902,2]
[371659918,1752381044952,-162.417509,0.0001902,2]
[371659920,1752381044963,-460.0,0.0001902,2]
[371659922,1752381044973,-467.28361239,0.0001902,2]
[371659925,1752381044983,-460.0,0.0001902,2]
[371659927,1752381044993,-1164.25,0.0001902,2]
[371659929,1752381045003,-460.0,0.0001902,2]
[371659931,1752381045012,-460.0,0.0001902,2]
[371659933,1752381045022,-464.22388137,0.0001902,2]
[371659935,1752381045032,-471.35,0.0001902,2]